[Event "Titled Tuesday Blitz February 21 Early 2023"]
[White "Kubicka, Anna"]
[Black "Kamsky, Gata"]
[WhiteFideId "1152254"]
[BlackFideId "2000024"]
[WhiteElo "2240"]
[BlackElo "2665"]
[Result "1/2-1/2"]
[Round "04"]
[TimeControl "180+2"]
[Date "2023.02.21"]
[WhiteClock "0:00:08"]
[BlackClock "0:00:04"]

1. e4 {[%clk 0:03:00]}  e5 {[%clk 0:02:54]} 2. Nf3 {[%clk 0:03:00]}  Nc6 {[%clk 0:02:54]} 3. Bb5 {[%clk 0:03:00]}  a6 {[%clk 0:02:46]} 4. Ba4 {[%clk 0:03:01]}  Nf6 {[%clk 0:02:46]} 5. O-O {[%clk 0:03:00]}  Be7 {[%clk 0:02:45]} 6. Re1 {[%clk 0:02:58]}  b5 {[%clk 0:02:42]} 7. Bb3 {[%clk 0:02:58]}  d6 {[%clk 0:02:42]} 8. c3 {[%clk 0:02:56]}  O-O {[%clk 0:02:40]} 9. h3 {[%clk 0:02:56]}  Nb8 {[%clk 0:02:38]} 10. d4 {[%clk 0:02:56]}  Nbd7 {[%clk 0:02:38]} 11. c4 {[%clk 0:02:55]}  c6 {[%clk 0:02:38]} 12. Qc2 {[%clk 0:02:50]}  Bb7 {[%clk 0:02:32]} 13. Nc3 {[%clk 0:02:48]}  b4 {[%clk 0:02:20]} 14. Ne2 {[%clk 0:02:47]}  c5 {[%clk 0:02:20]} 15. d5 {[%clk 0:02:47]}  g6 {[%clk 0:02:14]} 16. Ng3 {[%clk 0:02:38]}  Ne8 {[%clk 0:02:13]} 17. Bh6 {[%clk 0:02:35]}  Ng7 {[%clk 0:02:12]} 18. a3 {[%clk 0:02:29]}  a5 {[%clk 0:02:08]} 19. Ba4 {[%clk 0:02:24]}  Nf6 {[%clk 0:02:08]} 20. Nh2 {[%clk 0:02:11]}  Kh8 {[%clk 0:02:05]} 21. Rf1 {[%clk 0:01:53]}  Ng8 {[%clk 0:02:04]} 22. Be3 {[%clk 0:01:52]}  Bg5 {[%clk 0:01:59]} 23. Qd2 {[%clk 0:01:39]}  Bxe3 {[%clk 0:01:57]} 24. Qxe3 {[%clk 0:01:40]}  Qc7 {[%clk 0:01:39]} 25. f4 {[%clk 0:01:35]}  exf4 {[%clk 0:01:34]} 26. Rxf4 {[%clk 0:01:30]}  f6 {[%clk 0:01:26]} 27. Raf1 {[%clk 0:01:26]}  Ba6 {[%clk 0:01:20]} 28. Qd3 {[%clk 0:01:12]}  Qe7 {[%clk 0:01:12]} 29. Bc6 {[%clk 0:01:04]}  Rab8 {[%clk 0:01:09]} 30. axb4 {[%clk 0:01:01]}  Rxb4 {[%clk 0:01:07]} 31. b3 {[%clk 0:01:01]}  Bb7 {[%clk 0:01:05]} 32. Ba4 {[%clk 0:00:58]}  Bc8 {[%clk 0:01:04]} 33. Qc3 {[%clk 0:00:51]}  Bd7 {[%clk 0:00:23]} 34. Bxd7 {[%clk 0:00:50]}  Qxd7 {[%clk 0:00:23]} 35. Ng4 {[%clk 0:00:46]}  Qb7 {[%clk 0:00:20]} 36. R4f3 {[%clk 0:00:26]}  Rb8 {[%clk 0:00:20]} 37. Nxf6 {[%clk 0:00:12]}  Rxb3 {[%clk 0:00:20]} 38. Qa1 {[%clk 0:00:08]}  Rxf3 {[%clk 0:00:19]} 39. gxf3 {[%clk 0:00:08]}  Qb2 {[%clk 0:00:17]} 40. Nd7 {[%clk 0:00:06]}  Rb7 {[%clk 0:00:14]} 41. Qxb2 {[%clk 0:00:05]}  Rxb2 {[%clk 0:00:14]} 42. Ra1 {[%clk 0:00:06]}  Rb7 {[%clk 0:00:14]} 43. Nf8 {[%clk 0:00:05]}  Ra7 {[%clk 0:00:14]} 44. Ne2 {[%clk 0:00:04]}  Nf6 {[%clk 0:00:13]} 45. Nf4 {[%clk 0:00:04]}  Kg8 {[%clk 0:00:12]} 46. N8e6 {[%clk 0:00:04]}  Nd7 {[%clk 0:00:12]} 47. Nd8 {[%clk 0:00:04]}  Ne5 {[%clk 0:00:12]} 48. Nfe6 {[%clk 0:00:04]}  Nxe6 {[%clk 0:00:11]} 49. Nxe6 {[%clk 0:00:05]}  Nxc4 {[%clk 0:00:11]} 50. Ra4 {[%clk 0:00:04]}  Ne5 {[%clk 0:00:10]} 51. f4 {[%clk 0:00:04]}  Nd3 {[%clk 0:00:10]} 52. e5 {[%clk 0:00:03]}  dxe5 {[%clk 0:00:08]} 53. fxe5 {[%clk 0:00:04]}  Nxe5 {[%clk 0:00:08]} 54. Nxc5 {[%clk 0:00:05]}  Kf7 {[%clk 0:00:06]} 55. Nb3 {[%clk 0:00:04]}  Ke7 {[%clk 0:00:06]} 56. Rxa5 {[%clk 0:00:04]}  Rxa5 {[%clk 0:00:06]} 57. Nxa5 {[%clk 0:00:05]}  Kd6 {[%clk 0:00:06]} 58. Kf2 {[%clk 0:00:05]}  Kxd5 {[%clk 0:00:07]} 59. Kg3 {[%clk 0:00:05]}  g5 {[%clk 0:00:07]} 60. Nb3 {[%clk 0:00:06]}  h5 {[%clk 0:00:06]} 61. Nd2 {[%clk 0:00:06]}  h4+ {[%clk 0:00:06]} 62. Kf2 {[%clk 0:00:05]}  Ke6 {[%clk 0:00:05]} 63. Ke3 {[%clk 0:00:04]}  Kf5 {[%clk 0:00:05]} 64. Nf3 {[%clk 0:00:02]}  Ng6 {[%clk 0:00:05]} 65. Nd4+ {[%clk 0:00:02]}  Kf6 {[%clk 0:00:05]} 66. Nf3 {[%clk 0:00:03]}  Ne5 {[%clk 0:00:03]} 67. Nxe5 {[%clk 0:00:03]}  Kxe5 {[%clk 0:00:03]} 68. Kf3 {[%clk 0:00:03]}  Kf5 {[%clk 0:00:04]} 69. Ke3 {[%clk 0:00:04]}  Ke5 {[%clk 0:00:03]} 70. Kf3 {[%clk 0:00:04]}  Kf5 {[%clk 0:00:03]} 71. Ke3 {[%clk 0:00:05]}  g4 {[%clk 0:00:03]} 72. hxg4+ {[%clk 0:00:05]}  Kxg4 {[%clk 0:00:03]} 73. Kf2 {[%clk 0:00:06]}  h3 {[%clk 0:00:03]} 74. Kg1 {[%clk 0:00:07]}  Kg3 {[%clk 0:00:03]} 75. Kh1 {[%clk 0:00:08]}  h2 {[%clk 0:00:04]} 1/2-1/2


[Site "https://www.chess.com"]

[Event "Titled Tuesday Blitz February 21 Early 2023"]
[White "Chakravarthi Reddy, M"]
[Black "Belozerov, Andrei"]
[WhiteFideId "25009532"]
[BlackFideId "4120213"]
[WhiteElo "2279"]
[BlackElo "2461"]
[Result "0-1"]
[Round "04"]
[TimeControl "180+2"]
[Date "2023.02.21"]
[WhiteClock "0:00:02"]
[BlackClock "0:00:10"]

1. c4 {[%clk 0:03:00]}  e6 {[%clk 0:02:57]} 2. Nc3 {[%clk 0:02:58]}  d5 {[%clk 0:02:57]} 3. d4 {[%clk 0:02:58]}  c6 {[%clk 0:02:57]} 4. Nf3 {[%clk 0:02:58]}  Nf6 {[%clk 0:02:56]} 5. Qc2 {[%clk 0:02:57]}  dxc4 {[%clk 0:02:55]} 6. a4 {[%clk 0:02:57]}  Bb4 {[%clk 0:02:51]} 7. e4 {[%clk 0:02:56]}  b5 {[%clk 0:02:50]} 8. Bd2 {[%clk 0:02:53]}  Bb7 {[%clk 0:02:39]} 9. e5 {[%clk 0:02:25]}  Nd5 {[%clk 0:02:08]} 10. Be2 {[%clk 0:02:18]}  Nxc3 {[%clk 0:01:52]} 11. bxc3 {[%clk 0:02:16]}  Be7 {[%clk 0:01:52]} 12. h4 {[%clk 0:02:14]}  h6 {[%clk 0:01:43]} 13. Rh3 {[%clk 0:02:10]}  Nd7 {[%clk 0:01:41]} 14. Rg3 {[%clk 0:02:07]}  Bf8 {[%clk 0:01:39]} 15. Rb1 {[%clk 0:01:53]}  a6 {[%clk 0:01:38]} 16. Bxc4 {[%clk 0:01:50]}  Nb6 {[%clk 0:01:05]} 17. Bb3 {[%clk 0:01:21]}  Rc8 {[%clk 0:01:03]} 18. a5 {[%clk 0:00:56]}  Nd5 {[%clk 0:00:42]} 19. Kf1 {[%clk 0:00:54]}  c5 {[%clk 0:00:41]} 20. Kg1 {[%clk 0:00:46]}  c4 {[%clk 0:00:40]} 21. Ba2 {[%clk 0:00:40]}  Qxa5 {[%clk 0:00:39]} 22. Ra1 {[%clk 0:00:32]}  Qc7 {[%clk 0:00:38]} 23. Nh2 {[%clk 0:00:28]}  Ne7 {[%clk 0:00:33]} 24. Bb1 {[%clk 0:00:21]}  Nf5 {[%clk 0:00:33]} 25. Rh3 {[%clk 0:00:21]}  Qc6 {[%clk 0:00:32]} 26. Nf3 {[%clk 0:00:19]}  Be7 {[%clk 0:00:30]} 27. Qc1 {[%clk 0:00:17]}  Qd5 {[%clk 0:00:26]} 28. Bxf5 {[%clk 0:00:16]}  exf5 {[%clk 0:00:26]} 29. Bf4 {[%clk 0:00:16]}  Qe6 {[%clk 0:00:24]} 30. h5 {[%clk 0:00:16]}  Bd5 {[%clk 0:00:22]} 31. Rg3 {[%clk 0:00:17]}  Bf8 {[%clk 0:00:19]} 32. Qb1 {[%clk 0:00:14]}  Rc6 {[%clk 0:00:17]} 33. Nh4 {[%clk 0:00:14]}  Be4 {[%clk 0:00:15]} 34. Qa2 {[%clk 0:00:15]}  Be7 {[%clk 0:00:14]} 35. Nf3 {[%clk 0:00:14]}  g5 {[%clk 0:00:14]} 36. hxg6 {[%clk 0:00:14]}  fxg6 {[%clk 0:00:14]} 37. Qa5 {[%clk 0:00:12]}  g5 {[%clk 0:00:14]} 38. Bd2 {[%clk 0:00:11]}  f4 {[%clk 0:00:14]} 39. Rh3 {[%clk 0:00:11]}  g4 {[%clk 0:00:14]} 40. Ng5 {[%clk 0:00:07]}  Bxg5 {[%clk 0:00:12]} 41. Rh1 {[%clk 0:00:07]}  g3 {[%clk 0:00:11]} 42. fxg3 {[%clk 0:00:06]}  Qg4 {[%clk 0:00:11]} 43. Bxf4 {[%clk 0:00:06]}  Bxf4 {[%clk 0:00:10]} 44. Rf1 {[%clk 0:00:04]}  Be3+ {[%clk 0:00:10]} 45. Kh2 {[%clk 0:00:02]}  Qh5# {[%clk 0:00:10]} 0-1


[Site "https://www.chess.com"]

[Event "Titled Tuesday Blitz February 21 Early 2023"]
[White "Cunha, Lucas Aguiar"]
[Black "Averjanov, Alexey"]
[WhiteFideId "2125404"]
[BlackFideId "14109867"]
[WhiteElo "2309"]
[BlackElo "2399"]
[Result "1-0"]
[Round "04"]
[TimeControl "180+2"]
[Date "2023.02.21"]
[WhiteClock "0:00:08"]
[BlackClock "0:00:07"]

1. e4 {[%clk 0:03:00]}  c6 {[%clk 0:02:59]} 2. d4 {[%clk 0:02:58]}  d5 {[%clk 0:03:00]} 3. e5 {[%clk 0:02:58]}  Bf5 {[%clk 0:03:00]} 4. Nf3 {[%clk 0:02:58]}  e6 {[%clk 0:03:00]} 5. Be2 {[%clk 0:02:57]}  Nd7 {[%clk 0:03:00]} 6. O-O {[%clk 0:02:54]}  a5 {[%clk 0:02:57]} 7. a4 {[%clk 0:02:52]}  h6 {[%clk 0:02:57]} 8. Nbd2 {[%clk 0:02:52]}  Qc7 {[%clk 0:02:57]} 9. c4 {[%clk 0:02:51]}  dxc4 {[%clk 0:02:55]} 10. Nxc4 {[%clk 0:02:50]}  Nb6 {[%clk 0:02:54]} 11. Bd2 {[%clk 0:02:47]}  Nxc4 {[%clk 0:02:52]} 12. Bxc4 {[%clk 0:02:48]}  Ne7 {[%clk 0:02:52]} 13. Re1 {[%clk 0:02:47]}  Qd7 {[%clk 0:02:48]} 14. h3 {[%clk 0:02:46]}  Nd5 {[%clk 0:02:48]} 15. Qb3 {[%clk 0:02:44]}  Be7 {[%clk 0:02:42]} 16. Nh2 {[%clk 0:02:33]}  O-O {[%clk 0:02:41]} 17. Nf1 {[%clk 0:02:33]}  Rfd8 {[%clk 0:02:35]} 18. Ng3 {[%clk 0:02:33]}  Bg6 {[%clk 0:02:34]} 19. Rad1 {[%clk 0:02:26]}  Nb4 {[%clk 0:02:29]} 20. Bxb4 {[%clk 0:02:16]}  Bxb4 {[%clk 0:02:30]} 21. Rf1 {[%clk 0:02:10]}  b5 {[%clk 0:02:25]} 22. Be2 {[%clk 0:02:04]}  Qa7 {[%clk 0:02:16]} 23. Bf3 {[%clk 0:01:57]}  Rac8 {[%clk 0:02:03]} 24. Ne2 {[%clk 0:01:38]}  Rd7 {[%clk 0:01:59]} 25. Rc1 {[%clk 0:01:36]}  Rdc7 {[%clk 0:01:49]} 26. Rfd1 {[%clk 0:01:26]}  Qb6 {[%clk 0:01:46]} 27. g3 {[%clk 0:01:15]}  bxa4 {[%clk 0:01:42]} 28. Qxa4 {[%clk 0:01:13]}  c5 {[%clk 0:01:43]} 29. d5 {[%clk 0:01:09]}  exd5 {[%clk 0:01:40]} 30. Bxd5 {[%clk 0:01:07]}  c4 {[%clk 0:01:40]} 31. Nf4 {[%clk 0:00:51]}  Bf5 {[%clk 0:01:36]} 32. Kg2 {[%clk 0:00:49]}  Kh7 {[%clk 0:01:31]} 33. g4 {[%clk 0:00:32]}  Bd7 {[%clk 0:01:27]} 34. Qc2+ {[%clk 0:00:32]}  Kg8 {[%clk 0:01:27]} 35. Qe4 {[%clk 0:00:30]}  Bc6 {[%clk 0:01:23]} 36. e6 {[%clk 0:00:16]}  Bxd5 {[%clk 0:01:01]} 37. Nxd5 {[%clk 0:00:17]}  Qc6 {[%clk 0:01:02]} 38. e7 {[%clk 0:00:14]}  Bxe7 {[%clk 0:00:50]} 39. Rxc4 {[%clk 0:00:07]}  Qe8 {[%clk 0:00:11]} 40. Rxc7 {[%clk 0:00:03]}  Rxc7 {[%clk 0:00:09]} 41. Nxc7 {[%clk 0:00:04]}  Qf8 {[%clk 0:00:09]} 42. Nd5 {[%clk 0:00:02]}  Bd6 {[%clk 0:00:08]} 43. Ne3 {[%clk 0:00:03]}  g6 {[%clk 0:00:08]} 44. Nc4 {[%clk 0:00:03]}  Bb4 {[%clk 0:00:08]} 45. Rd7 {[%clk 0:00:04]}  Qc8 {[%clk 0:00:06]} 46. Qd5 {[%clk 0:00:05]}  Qe8 {[%clk 0:00:03]} 47. Ne5 {[%clk 0:00:05]}  Qe6 {[%clk 0:00:03]} 48. Qxe6 {[%clk 0:00:04]}  fxe6 {[%clk 0:00:04]} 49. Nc6 {[%clk 0:00:05]}  Bc5 {[%clk 0:00:03]} 50. Kf3 {[%clk 0:00:06]}  Kf8 {[%clk 0:00:03]} 51. b3 {[%clk 0:00:07]}  Ke8 {[%clk 0:00:04]} 52. Rh7 {[%clk 0:00:07]}  h5 {[%clk 0:00:04]} 53. gxh5 {[%clk 0:00:07]}  gxh5 {[%clk 0:00:05]} 54. Rxh5 {[%clk 0:00:08]}  Kd7 {[%clk 0:00:06]} 55. Rxc5 {[%clk 0:00:08]}  Kd6 {[%clk 0:00:07]} 56. Rc4 {[%clk 0:00:08]} 1-0


[Site "https://www.chess.com"]

[Event "Titled Tuesday Blitz February 21 Early 2023"]
[White "Budisavljevic, Luka"]
[Black "Grunberg, Mihai-Lucian"]
[WhiteFideId "960047"]
[BlackFideId "1204149"]
[WhiteElo "2488"]
[BlackElo "2401"]
[Result "1-0"]
[Round "04"]
[TimeControl "180+2"]
[Date "2023.02.21"]
[WhiteClock "0:01:49"]
[BlackClock "0:01:59"]

1. d4 {[%clk 0:03:00]}  f5 {[%clk 0:03:00]} 2. Nc3 {[%clk 0:02:58]}  d5 {[%clk 0:02:59]} 3. Bg5 {[%clk 0:02:58]}  Nf6 {[%clk 0:02:59]} 4. Bxf6 {[%clk 0:02:57]}  exf6 {[%clk 0:03:00]} 5. e3 {[%clk 0:02:58]}  c6 {[%clk 0:02:59]} 6. Bd3 {[%clk 0:02:59]}  Be6 {[%clk 0:02:57]} 7. Qf3 {[%clk 0:02:59]}  g6 {[%clk 0:02:56]} 8. Nge2 {[%clk 0:02:59]}  Bg7 {[%clk 0:02:51]} 9. h4 {[%clk 0:02:59]}  h5 {[%clk 0:02:51]} 10. Qg3 {[%clk 0:02:55]}  Kf7 {[%clk 0:02:40]} 11. Nf4 {[%clk 0:02:54]}  Rh6 {[%clk 0:02:40]} 12. Be2 {[%clk 0:02:32]}  Qh8 {[%clk 0:02:19]} 13. Nxe6 {[%clk 0:01:54]}  Kxe6 {[%clk 0:02:19]} 14. Qc7 {[%clk 0:01:54]}  Nd7 {[%clk 0:02:10]} 15. Qxb7 {[%clk 0:01:53]}  Qc8 {[%clk 0:02:10]} 16. Ba6 {[%clk 0:01:51]}  Qxb7 {[%clk 0:02:06]} 17. Bxb7 {[%clk 0:01:52]}  Rb8 {[%clk 0:02:07]} 18. Bxc6 {[%clk 0:01:52]}  Rxb2 {[%clk 0:02:05]} 19. Bxd5+ {[%clk 0:01:52]}  Kd6 {[%clk 0:02:04]} 20. Bb3 {[%clk 0:01:52]}  Nb6 {[%clk 0:01:59]} 21. Nd1 {[%clk 0:01:49]} 1-0


[Site "https://www.chess.com"]

[Event "Titled Tuesday Blitz February 21 Early 2023"]
[White "Sharapov, Evgeny"]
[Black "Gatterer, Florian"]
[WhiteFideId "14103133"]
[BlackFideId "811688"]
[WhiteElo "2375"]
[BlackElo "2170"]
[Result "1-0"]
[Round "04"]
[TimeControl "180+2"]
[Date "2023.02.21"]
[WhiteClock "0:00:15"]
[BlackClock "0:00:19"]

1. e4 {[%clk 0:02:59]}  c5 {[%clk 0:02:59]} 2. Nf3 {[%clk 0:02:59]}  e6 {[%clk 0:03:00]} 3. d4 {[%clk 0:02:58]}  cxd4 {[%clk 0:03:01]} 4. Nxd4 {[%clk 0:02:58]}  Nf6 {[%clk 0:03:01]} 5. Nc3 {[%clk 0:02:58]}  Nc6 {[%clk 0:03:01]} 6. Ndb5 {[%clk 0:02:57]}  Bc5 {[%clk 0:03:01]} 7. Nd6+ {[%clk 0:02:53]}  Ke7 {[%clk 0:03:01]} 8. Nxc8+ {[%clk 0:02:48]}  Rxc8 {[%clk 0:02:58]} 9. Bd3 {[%clk 0:02:47]}  Re8 {[%clk 0:02:51]} 10. O-O {[%clk 0:02:47]}  Kf8 {[%clk 0:02:50]} 11. Kh1 {[%clk 0:02:40]}  d5 {[%clk 0:02:48]} 12. exd5 {[%clk 0:02:40]}  exd5 {[%clk 0:02:43]} 13. Bg5 {[%clk 0:02:37]}  Kg8 {[%clk 0:02:38]} 14. Qf3 {[%clk 0:02:18]}  Ne5 {[%clk 0:02:08]} 15. Bxf6 {[%clk 0:02:18]}  Nxf3 {[%clk 0:02:07]} 16. Bxd8 {[%clk 0:02:16]}  Nd2 {[%clk 0:01:57]} 17. Bh4 {[%clk 0:02:07]}  Nxf1 {[%clk 0:01:55]} 18. Rxf1 {[%clk 0:02:07]}  Bd4 {[%clk 0:01:52]} 19. Nxd5 {[%clk 0:02:03]}  f6 {[%clk 0:01:44]} 20. c3 {[%clk 0:01:58]}  Be5 {[%clk 0:01:44]} 21. Bc2 {[%clk 0:01:55]}  Kf7 {[%clk 0:01:43]} 22. Bb3 {[%clk 0:01:55]}  Kg6 {[%clk 0:01:43]} 23. Bg3 {[%clk 0:01:53]}  Bxg3 {[%clk 0:01:43]} 24. fxg3 {[%clk 0:01:52]}  h5 {[%clk 0:01:34]} 25. Kg1 {[%clk 0:01:51]}  Kh6 {[%clk 0:01:29]} 26. Kf2 {[%clk 0:01:51]}  Rcd8 {[%clk 0:01:26]} 27. Re1 {[%clk 0:01:51]}  Rxe1 {[%clk 0:01:22]} 28. Kxe1 {[%clk 0:01:51]}  Kg5 {[%clk 0:01:22]} 29. Ke2 {[%clk 0:01:51]}  Kf5 {[%clk 0:01:20]} 30. Ne3+ {[%clk 0:01:46]}  Ke5 {[%clk 0:01:19]} 31. Bc2 {[%clk 0:01:44]}  b5 {[%clk 0:01:16]} 32. Bg6 {[%clk 0:01:41]}  Rh8 {[%clk 0:01:08]} 33. Bd3 {[%clk 0:01:38]}  a6 {[%clk 0:01:04]} 34. a3 {[%clk 0:01:37]}  h4 {[%clk 0:01:02]} 35. gxh4 {[%clk 0:01:32]}  Rxh4 {[%clk 0:01:01]} 36. h3 {[%clk 0:01:32]}  Rh8 {[%clk 0:01:01]} 37. c4 {[%clk 0:01:25]}  bxc4 {[%clk 0:00:52]} 38. Bxc4 {[%clk 0:01:24]}  Kd4 {[%clk 0:00:50]} 39. Bf7 {[%clk 0:01:03]}  Rf8 {[%clk 0:00:38]} 40. Bg6 {[%clk 0:01:03]}  Rb8 {[%clk 0:00:29]} 41. b4 {[%clk 0:01:02]}  Ke5 {[%clk 0:00:24]} 42. Kf3 {[%clk 0:00:56]}  Rc8 {[%clk 0:00:21]} 43. a4 {[%clk 0:00:49]}  Rc3 {[%clk 0:00:19]} 44. Ke2 {[%clk 0:00:47]}  Rb3 {[%clk 0:00:17]} 45. Nc2 {[%clk 0:00:40]}  Rg3 {[%clk 0:00:13]} 46. Bd3 {[%clk 0:00:34]}  Rxg2+ {[%clk 0:00:12]} 47. Ke3 {[%clk 0:00:34]}  Rg3+ {[%clk 0:00:12]} 48. Kd2 {[%clk 0:00:34]}  Rxh3 {[%clk 0:00:11]} 49. Bxa6 {[%clk 0:00:34]}  g5 {[%clk 0:00:10]} 50. b5 {[%clk 0:00:34]}  Rh8 {[%clk 0:00:11]} 51. b6 {[%clk 0:00:34]}  Kd6 {[%clk 0:00:11]} 52. Be2 {[%clk 0:00:31]}  f5 {[%clk 0:00:10]} 53. a5 {[%clk 0:00:31]}  Kc6 {[%clk 0:00:11]} 54. Bf3+ {[%clk 0:00:30]}  Kc5 {[%clk 0:00:10]} 55. b7 {[%clk 0:00:29]}  Kb5 {[%clk 0:00:10]} 56. Nd4+ {[%clk 0:00:29]}  Kxa5 {[%clk 0:00:09]} 57. Nc6+ {[%clk 0:00:29]}  Kb6 {[%clk 0:00:07]} 58. b8=Q+ {[%clk 0:00:29]}  Rxb8 {[%clk 0:00:07]} 59. Nxb8 {[%clk 0:00:29]}  g4 {[%clk 0:00:08]} 60. Bd5 {[%clk 0:00:28]}  Kc5 {[%clk 0:00:09]} 61. Be6 {[%clk 0:00:28]}  Kd6 {[%clk 0:00:09]} 62. Bxf5 {[%clk 0:00:28]}  g3 {[%clk 0:00:10]} 63. Bh3 {[%clk 0:00:27]}  g2 {[%clk 0:00:11]} 64. Bxg2 {[%clk 0:00:27]}  Kc7 {[%clk 0:00:11]} 65. Nc6 {[%clk 0:00:27]}  Kd6 {[%clk 0:00:12]} 66. Kd3 {[%clk 0:00:28]}  Ke6 {[%clk 0:00:12]} 67. Kd4 {[%clk 0:00:27]}  Kf7 {[%clk 0:00:13]} 68. Ke5 {[%clk 0:00:27]}  Kg6 {[%clk 0:00:14]} 69. Be4+ {[%clk 0:00:27]}  Kg5 {[%clk 0:00:15]} 70. Bf5 {[%clk 0:00:27]}  Kh6 {[%clk 0:00:15]} 71. Kf6 {[%clk 0:00:27]}  Kh5 {[%clk 0:00:14]} 72. Ne5 {[%clk 0:00:27]}  Kh6 {[%clk 0:00:15]} 73. Nf7+ {[%clk 0:00:27]}  Kh5 {[%clk 0:00:16]} 74. Ke5 {[%clk 0:00:25]}  Kh4 {[%clk 0:00:17]} 75. Kf4 {[%clk 0:00:25]}  Kh5 {[%clk 0:00:17]} 76. Be4 {[%clk 0:00:23]}  Kh4 {[%clk 0:00:17]} 77. Bg6 {[%clk 0:00:24]}  Kh3 {[%clk 0:00:17]} 78. Ne5 {[%clk 0:00:21]}  Kh4 {[%clk 0:00:17]} 79. Nf3+ {[%clk 0:00:21]}  Kh3 {[%clk 0:00:18]} 80. Bf5+ {[%clk 0:00:21]}  Kg2 {[%clk 0:00:18]} 81. Bg4 {[%clk 0:00:20]}  Kf2 {[%clk 0:00:18]} 82. Ne5 {[%clk 0:00:20]}  Ke1 {[%clk 0:00:18]} 83. Ke3 {[%clk 0:00:20]}  Kf1 {[%clk 0:00:18]} 84. Nd3 {[%clk 0:00:17]}  Kg2 {[%clk 0:00:18]} 85. Kf4 {[%clk 0:00:17]}  Kf1 {[%clk 0:00:18]} 86. Kf3 {[%clk 0:00:16]}  Kg1 {[%clk 0:00:18]} 87. Kg3 {[%clk 0:00:16]}  Kf1 {[%clk 0:00:19]} 88. Bf3 {[%clk 0:00:15]}  Kg1 {[%clk 0:00:19]} 89. Be2 {[%clk 0:00:15]}  Kh1 {[%clk 0:00:18]} 90. Nf4 {[%clk 0:00:15]}  Kg1 {[%clk 0:00:19]} 91. Nh3+ {[%clk 0:00:15]}  Kh1 {[%clk 0:00:19]} 92. Bf3# {[%clk 0:00:15]} 1-0


[Site "https://www.chess.com"]

[Event "Titled Tuesday Blitz February 21 Early 2023"]
[White "Lerch, Philipp"]
[Black "Lymar, Vladislav"]
[WhiteFideId "4654129"]
[BlackFideId "14162180"]
[WhiteElo "2305"]
[BlackElo "2119"]
[Result "0-1"]
[Round "04"]
[TimeControl "180+2"]
[Date "2023.02.21"]
[WhiteClock "0:00:36"]
[BlackClock "0:01:12"]

1. b3 {[%clk 0:02:55]}  e5 {[%clk 0:02:55]} 2. Bb2 {[%clk 0:02:55]}  Nc6 {[%clk 0:02:55]} 3. e3 {[%clk 0:02:55]}  d5 {[%clk 0:02:54]} 4. Bb5 {[%clk 0:02:54]}  Ne7 {[%clk 0:02:54]} 5. Bxe5 {[%clk 0:02:39]}  a6 {[%clk 0:02:53]} 6. Bxc6+ {[%clk 0:02:39]}  Nxc6 {[%clk 0:02:54]} 7. Bb2 {[%clk 0:02:39]}  Qg5 {[%clk 0:02:45]} 8. g3 {[%clk 0:02:28]}  Bg4 {[%clk 0:02:35]} 9. f3 {[%clk 0:02:21]}  Be6 {[%clk 0:02:34]} 10. Nc3 {[%clk 0:02:04]}  h5 {[%clk 0:02:34]} 11. Qe2 {[%clk 0:01:49]}  h4 {[%clk 0:02:34]} 12. g4 {[%clk 0:01:50]}  O-O-O {[%clk 0:02:28]} 13. O-O-O {[%clk 0:01:45]}  Bc5 {[%clk 0:02:24]} 14. Nh3 {[%clk 0:01:38]}  Qe7 {[%clk 0:02:21]} 15. d4 {[%clk 0:01:24]}  Bd6 {[%clk 0:02:16]} 16. f4 {[%clk 0:01:04]}  g6 {[%clk 0:02:03]} 17. Ng5 {[%clk 0:01:01]}  Bb4 {[%clk 0:01:51]} 18. Nxe6 {[%clk 0:00:59]}  Qxe6 {[%clk 0:01:51]} 19. Qf3 {[%clk 0:00:58]}  Ne7 {[%clk 0:01:43]} 20. e4 {[%clk 0:00:55]}  Bxc3 {[%clk 0:01:42]} 21. exd5 {[%clk 0:00:47]}  Bxb2+ {[%clk 0:01:41]} 22. Kxb2 {[%clk 0:00:47]}  Qxd5 {[%clk 0:01:40]} 23. Qe3 {[%clk 0:00:46]}  Nc6 {[%clk 0:01:22]} 24. c4 {[%clk 0:00:43]}  Qg2+ {[%clk 0:01:17]} 25. Ka3 {[%clk 0:00:43]}  Rhe8 {[%clk 0:01:14]} 26. Qd3 {[%clk 0:00:36]}  Rxd4 {[%clk 0:01:12]} 0-1


[Site "https://www.chess.com"]

[Event "Titled Tuesday Blitz February 21 Early 2023"]
[White "Migot, Tangi"]
[Black "Can, Melih Kaan"]
[WhiteFideId "662445"]
[BlackFideId "6317383"]
[WhiteElo "2373"]
[BlackElo "2069"]
[Result "1-0"]
[Round "04"]
[TimeControl "180+2"]
[Date "2023.02.21"]
[WhiteClock "0:00:13"]
[BlackClock "0:00:02"]

1. Nf3 {[%clk 0:03:00]}  Nf6 {[%clk 0:02:54]} 2. e3 {[%clk 0:03:01]}  d5 {[%clk 0:02:53]} 3. c4 {[%clk 0:03:01]}  e6 {[%clk 0:02:50]} 4. b3 {[%clk 0:03:00]}  Be7 {[%clk 0:02:50]} 5. Bb2 {[%clk 0:03:00]}  O-O {[%clk 0:02:50]} 6. Be2 {[%clk 0:02:59]}  c5 {[%clk 0:02:48]} 7. O-O {[%clk 0:02:58]}  b6 {[%clk 0:02:45]} 8. cxd5 {[%clk 0:02:56]}  Nxd5 {[%clk 0:02:42]} 9. d4 {[%clk 0:02:57]}  cxd4 {[%clk 0:02:39]} 10. Bxd4 {[%clk 0:02:56]}  Nc6 {[%clk 0:02:35]} 11. Bb2 {[%clk 0:02:55]}  Bb7 {[%clk 0:02:35]} 12. Nc3 {[%clk 0:02:54]}  Bf6 {[%clk 0:02:19]} 13. Rc1 {[%clk 0:02:50]}  Rc8 {[%clk 0:01:53]} 14. Ba1 {[%clk 0:02:37]}  Nxc3 {[%clk 0:01:49]} 15. Bxc3 {[%clk 0:02:36]}  Bxc3 {[%clk 0:01:34]} 16. Rxc3 {[%clk 0:02:36]}  Qf6 {[%clk 0:01:32]} 17. Qa1 {[%clk 0:02:30]}  Nb4 {[%clk 0:01:00]} 18. Rxc8 {[%clk 0:02:28]}  Rxc8 {[%clk 0:01:00]} 19. Bc4 {[%clk 0:01:51]}  Qg6 {[%clk 0:00:33]} 20. Kh1 {[%clk 0:01:34]}  h5 {[%clk 0:00:26]} 21. a3 {[%clk 0:01:21]}  Nd5 {[%clk 0:00:22]} 22. Qe5 {[%clk 0:01:16]}  Nf6 {[%clk 0:00:20]} 23. h3 {[%clk 0:01:07]}  Qe4 {[%clk 0:00:15]} 24. Rd1 {[%clk 0:00:58]}  Qxe5 {[%clk 0:00:11]} 25. Nxe5 {[%clk 0:00:58]}  Kf8 {[%clk 0:00:11]} 26. Kh2 {[%clk 0:00:51]}  Ke7 {[%clk 0:00:11]} 27. f3 {[%clk 0:00:50]}  Bd5 {[%clk 0:00:07]} 28. Kg3 {[%clk 0:00:30]}  Bxc4 {[%clk 0:00:05]} 29. Nxc4 {[%clk 0:00:31]}  Rd8 {[%clk 0:00:05]} 30. Rxd8 {[%clk 0:00:30]}  Kxd8 {[%clk 0:00:05]} 31. Ne5 {[%clk 0:00:30]}  Ke7 {[%clk 0:00:03]} 32. Nc6+ {[%clk 0:00:30]}  Kd6 {[%clk 0:00:04]} 33. Nxa7 {[%clk 0:00:31]}  Nd5 {[%clk 0:00:03]} 34. e4 {[%clk 0:00:30]}  Nc3 {[%clk 0:00:04]} 35. Kh4 {[%clk 0:00:21]}  Ne2 {[%clk 0:00:01]} 36. Nb5+ {[%clk 0:00:15]}  Kc5 {[%clk 0:00:02]} 37. Nc7 {[%clk 0:00:16]}  Nd4 {[%clk 0:00:01]} 38. b4+ {[%clk 0:00:15]}  Kc4 {[%clk 0:00:02]} 39. Na8 {[%clk 0:00:15]}  b5 {[%clk 0:00:02]} 40. Nb6+ {[%clk 0:00:14]}  Kb3 {[%clk 0:00:02]} 41. Nd7 {[%clk 0:00:13]}  Kxa3 {[%clk 0:00:02]} 42. Ne5 {[%clk 0:00:13]}  f6 {[%clk 0:00:02]} 43. Nd3 {[%clk 0:00:13]}  Kb3 {[%clk 0:00:02]} 44. Kxh5 {[%clk 0:00:14]}  Kc3 {[%clk 0:00:03]} 45. Nc5 {[%clk 0:00:13]}  Kxb4 {[%clk 0:00:04]} 46. Na6+ {[%clk 0:00:13]}  Kc4 {[%clk 0:00:03]} 47. Kg6 {[%clk 0:00:12]}  b4 {[%clk 0:00:01]} 48. Nxb4 {[%clk 0:00:13]}  Kxb4 {[%clk 0:00:02]} 49. Kxg7 {[%clk 0:00:14]}  f5 {[%clk 0:00:03]} 50. h4 {[%clk 0:00:13]}  fxe4 {[%clk 0:00:02]} 51. fxe4 {[%clk 0:00:14]}  Ne2 {[%clk 0:00:02]} 52. h5 {[%clk 0:00:13]}  Nf4 {[%clk 0:00:01]} 53. h6 {[%clk 0:00:13]}  Nh5+ {[%clk 0:00:01]} 54. Kg6 {[%clk 0:00:13]}  Nf4+ {[%clk 0:00:02]} 55. Kg5 {[%clk 0:00:13]} 1-0


[Site "https://www.chess.com"]